Cogmind - Beta 13 @@@ ROGUE MODE // 2024.04.13 @ 19:16:35 Player: DCS-TF2 Result: Destroyed by G-47 Trooper with Particle Gun Performance ------------- Evolutions (2) 1000 Regions Visited (7) 1400 Robots Destroyed (14) 70 Value Destroyed (223) 223 Prototype IDs (25) 500 Alien Tech Used (0) 0 Bonus (300) 300 TOTAL SCORE: 3493 Bonus ------- Aligned with FarCom 300 Cogmind --------- Core Integrity 0/550 Matter 30/300 Energy 88/100 System Corruption 0% Temperature Cool (9) Movement Core (50) Location -8/Materials Parts ------- > --- POWER (2) -------- (None) > --- PROPULSION (4) --- (None) > --- UTILITY (2) ------ (None) > --- WEAPON (3) ------- (None) > --- INVENTORY (5) ---- Flying Fortress v7 Peak State ------------ > --- POWER ------------ Light Deuterium Engine Nuclear Core > --- PROPULSION ------- Flying Fortress v7 > --- UTILITY ---------- Reaction Control System Hardened Medium Armor Plating > --- WEAPON ----------- Heavy EM Shotgun Advanced Beam Rifle EM Pulse Cannon > --- INVENTORY -------- Flight Unit Flight Unit Advanced Weight Redist. System Machine Analyzer Recoil Stabilizer [Rating: 56] Favorites ----------- Power Ion Engine Engine Ion Engine Power Core Nuclear Core Propulsion Wheel Wheel Wheel Hover Unit Airjet Flight Unit Flight Unit Utility Improved Terrain Scanner Device Improved Terrain Scanner Protection Hardened Medium Armor Plating Weapon EM Pulse Gun Energy Gun EM Pulse Gun Energy Cannon EM Pulse Cannon Ballistic Gun Assault Rifle Ballistic Cannon Assault Cannon Launcher Grenade Launcher Piercing Weapon Makeshift Spear Special Melee Weapon Datajack Build | -11 -10 -10 -9 -9 -9 -8 -8 ------- Run | Yrd Mat Min Mat Min Exi Min Mat Slots Evolved 4 | . . . 2 . . . 2 Power 1 | . . . 1 . . . . Propulsion 2 | . . . 1 . . . 1 Utility . | . . . . . . . . Weapon 1 | . . . . . . . 1 Parts Attached 52 | 7 10 12 3 3 . . 17 Power 10 | 1 3 3 1 1 . . 1 Engine 9 | 1 3 3 1 1 . . . Core 1 | . . . . . . . 1 Reactor . | . . . . . . . . Propulsion 10 | 3 . 4 . . . . 3 Treads . | . . . . . . . . Leg . | . . . . . . . . Wheel 3 | 3 . . . . . . . Hover 1 | . . 1 . . . . . Flight 6 | . . 3 . . . . 3 Utility 6 | 1 1 1 . . . . 3 Device 4 | 1 1 1 . . . . 1 Storage . | . . . . . . . . Processor . | . . . . . . . . Hackware . | . . . . . . . . Protection 2 | . . . . . . . 2 Artifact . | . . . . . . . . Weapon 26 | 2 6 4 2 2 . . 10 Energy Gun 12 | 1 3 1 2 1 . . 4 Energy Cannon 2 | . . . . . . . 2 Ballistic Gun 4 | 1 . 2 . . . . 1 Ballistic Cannon 2 | . . . . . . . 2 Launcher 4 | . 3 . . . . . 1 Special Weapon . | . . . . . . . . Impact Weapon . | . . . . . . . . Slashing Weapon . | . . . . . . . . Piercing Weapon 1 | . . . . 1 . . . Special Melee Weapon 1 | . . 1 . . . . . Unidentified Prototypes 2 | . . . 1 . . . 1 Parts Lost 11 | . . 1 . . . . 10 Power 2 | . . . . . . . 2 Propulsion 2 | . . . . . . . 2 Utility 3 | . . 1 . . . . 2 Weapon 4 | . . . . . . . 4 Highest Loss Streak 5 | . . 1 . . . . 5 To Critical Strikes . | . . . . . . . . Average Slot Usage (%) 73 | . 85 91 63 55 55 55 48 Engine 11 | . 11 14 13 19 11 11 6 Wheel 13 | . 28 18 . . . . . Flight 9 | . . 8 22 22 22 22 7 Device 17 | . 21 25 19 11 11 11 6 Energy Gun 12 | . 12 18 2 1 11 11 11 Ballistic Gun 2 | . 3 3 5 . . . . Launcher 2 | . 7 . . . . . . Naked Turns 3 | . . . . . . . 3 Heaviest Build 33 | 10 13 12 8 8 8 8 33 Greatest Support 50 | 26 20 20 8 8 8 8 50 Greatest Overweight (x) 10 | . . 1 . . . . 10 Average Overweight (x) . | . . . . . . . . Largest Inventory Capacity 5 | 5 5 5 5 5 5 5 5 Average Capacity 5 | 5 5 5 5 5 5 5 5 Most Carried 5 | 5 5 5 5 5 5 5 5 Average Carried 4 | 2 4 4 4 4 4 4 4 Final Capacity 5 | 5 5 5 5 5 5 5 5 Final Carried 5 | 3 5 4 5 4 5 5 4 Class Distribution -------------------- 89% | Mutant 7% | Tank Dominant Class ---------------- Mutant | -10/Materials Mutant | -10/Mines Mutant | -9/Materials Mutant | -9/Mines Mutant | -9/Exiles Mutant | -8/Mines Tank | -8/Materials Resources | -11 -10 -10 -9 -9 -9 -8 -8 ----------- Run | Yrd Mat Min Mat Min Exi Min Mat Matter Collected 533 | 222 28 246 . 37 . . . Remotely . | . . . . . . . . Salvage Created 466 | 25 81 173 62 . . . 125 Parts 23 | 4 5 8 1 . . . 5 Haulers Intercepted 1 | . 1 . . . . . . Recyclers Shooed 1 | . . . . . . . 1 Parts Field Recycled . | . . . . . . . . Retrieved Matter . | . . . . . . . . Parts Self-Destructed . | . . . . . . . . Prevented . | . . . . . . . . Kills | -11 -10 -10 -9 -9 -9 -8 -8 ------- Run | Yrd Mat Min Mat Min Exi Min Mat Combat Hostiles Destroyed 7 | . 1 3 . . . . 3 Guns 4 | . . 3 . . . . 1 Cannons 2 | . . . . . . . 2 AOE 1 | . 1 . . . . . . Classes Destroyed 8 | 1 3 3 . . . . 1 Worker 1 | . . 1 . . . . . Tunneler 2 | 1 1 . . . . . . Hauler 1 | . 1 . . . . . . Recycler 2 | . . 1 1 . . . . Watcher 1 | . 1 . . . . . . Swarmer 3 | . . 3 . . . . . Cutter 1 | . . . . . . . 1 Grunt 3 | . 1 . . . . . 2 Best Kill Streak 3 | 1 3 3 1 . . . 2 Combat Bots Only 3 | . 1 3 . . . . 2 Max Kills in Single Turn 2 | 1 2 1 1 . . . 1 Gunslinging . | . . . . . . . . Exploded 1 | . 1 . . . . . . Melee . | . . . . . . . . Uniques/NPCs Destroyed . | . . . . . . . . Combat | -11 -10 -10 -9 -9 -9 -8 -8 -------- Run | Yrd Mat Min Mat Min Exi Min Mat Hostile Shots Fired 142 | . 2 27 2 . . . 111 Missed 32 | . 2 11 1 . . . 18 Damage Taken 1918 | . . 155 14 . . . 1749 Core 603 | . . 38 14 . . . 551 Absorbed by Shields . | . . . . . . . . Regen/Repaired (Parts) 18 | . 18 . . . . . . Core Remaining (%) 93 | 100 . 84 . . . 96 . Volleys Fired 34 | 2 6 8 5 . . . 13 Largest 3 | 2 2 2 1 . . . 3 Hottest 174 | 60 70 80 61 . . . 174 Shots Fired 59 | 4 10 16 5 . . . 24 Gun 42 | 4 6 16 5 . . . 11 Cannon 12 | . . . . . . . 12 Launcher 5 | . 4 . . . . . 1 Special . | . . . . . . . . Kinetic 12 | 2 . . 3 . . . 7 Thermal 8 | . . . 2 . . . 6 Explosive 5 | . 4 . . . . . 1 Electromagnetic 34 | 2 6 16 . . . . 10 Robot Hit Streak 7 | 1 1 3 3 . . . 7 Robot Miss Streak 3 | 2 3 2 2 . . . 3 Penetration Max . | . . . . . . . . Secondary Targets . | . . . . . . . . Shots Hit Robots 31 | 1 4 7 3 1 . . 15 Core Hits 25 | 1 6 6 1 . . . 11 Critical Kills . | . . . . . . . . Critical Parts Destroyed . | . . . . . . . . Critical Strikes . | . . . . . . . . Melee Attacks 2 | . . . . 2 . . . Impact . | . . . . . . . . Slashing . | . . . . . . . . Piercing 2 | . . . . 2 . . . Sneak Attacks 1 | . . . . 1 . . . Combat Hostiles . | . . . . . . . . Follow-up Attacks . | . . . . . . . . Damage Inflicted 1069 | 12 337 83 52 73 . . 512 Guns 343 | 12 34 83 52 . . . 162 Cannons 226 | . . . . . . . 226 Explosions 426 | . 303 . . . . . 123 Melee 73 | . . . . 73 . . . Ramming 1 | . . . . . . . 1 Kinetic 105 | . . . 12 . . . 93 Thermal 120 | . . . 40 . . . 80 Explosive 426 | . 303 . . . . . 123 Electromagnetic 333 | 12 34 83 . . . . 204 Impact 11 | . . . . . . . 11 Slashing . | . . . . . . . . Piercing 73 | . . . . 73 . . . Highest Corruption . | . . . . . . . . Average Corruption . | . . . . . . . . Corruption Purged . | . . . . . . . . Corruption Blocked . | . . . . . . . . Overload Shots . | . . . . . . . . Overflow Damage 72 | . 19 . . 53 . . . Projectiles . | . . . . . . . . Explosions 19 | . 19 . . . . . . Melee 53 | . . . . 53 . . . Knockbacks 2 | . . . . . . . 2 Impact . | . . . . . . . . Kinetic 1 | . . . . . . . 1 Secondary 1 | . . . . . . . 1 Self-Inflicted Damage 26 | . . . . . . . 26 Shots 1 | . . . . . . . 1 Rammed 1 | . . . . . . . 1 Targets Rammed 1 | . . . . . . . 1 Kicked . | . . . . . . . . Crushed . | . . . . . . . . Highest Temperature 767 | . 38 92 38 . . . 767 Average Temperature 216 | . 14 38 20 . . . 298 Received Heat Transfer 909 | . . 27 9 . . . 873 Effects 17 | . . . . . . . 17 Shutdowns 3 | . . . . . . . 3 Energy Bleed 2 | . . . . . . . 2 Interference 3 | . . . . . . . 3 Matter Decay 2 | . . . . . . . 2 Short Circuit 2 | . . . . . . . 2 Damage (minor) 2 | . . . . . . . 2 Damage (core) 3 | . . . . . . . 3 Siege Activations . | . . . . . . . . Robots Corrupted . | . . . . . . . . Combat Hostiles . | . . . . . . . . Parts Fried . | . . . . . . . . Impact Corruptions . | . . . . . . . . Robots Melted . | . . . . . . . . Combat Hostiles . | . . . . . . . . Parts Melted . | . . . . . . . . Heat Transferred 222 | . . . 74 . . . 148 Parts Sabotaged . | . . . . . . . . Parts Stolen . | . . . . . . . . Parts Stripped . | . . . . . . . . Power Chain Reactions . | . . . . . . . . Alert | -11 -10 -10 -9 -9 -9 -8 -8 ------- Run | Yrd Mat Min Mat Min Exi Min Mat Peak Influence 192 | 5 94 136 72 42 . . 192 Initial 52 | . 3 36 52 27 . . . Average 59 | 2 53 86 55 41 . . 76 Maximum Alert Level . | . . . . . . . . Low Security (%) 100 | 100 100 100 100 100 . 100 100 Level 1 . | . . . . . . . . Level 2 . | . . . . . . . . Level 3 . | . . . . . . . . Level 4 . | . . . . . . . . Level 5 . | . . . . . . . . High Security . | . . . . . . . . Max Security . | . . . . . . . . Squads Dispatched 4 | . 1 . 1 . . . 2 Investigation 1 | . 1 . . . . . . Extermination . | . . . . . . . . Reinforcement 3 | . . . 1 . . . 2 Assault . | . . . . . . . . Garrison . | . . . . . . . . Intercept . | . . . . . . . . Searches Triggered . | . . . . . . . . Construction Impeded 1 | . . . . . . . 1 Haulers Reinforced . | . . . . . . . . Active Scanning Responses . | . . . . . . . . Cargo Convoy Interrupts . | . . . . . . . . Stealth | -11 -10 -10 -9 -9 -9 -8 -8 --------- Run | Yrd Mat Min Mat Min Exi Min Mat Distress Signals 2 | . . . . . . . 2 Communications Jammed . | . . . . . . . . Distress Signals . | . . . . . . . . Times Spotted 37 | . 6 10 2 . . . 19 Peak Tracking Total 8 | . 4 3 2 . . . 8 Tactical Retreats 10 | . . 4 . . . . 6 Traps | -11 -10 -10 -9 -9 -9 -8 -8 ------- Run | Yrd Mat Min Mat Min Exi Min Mat Traps Triggered 2 | . 2 . . . . . . Indirectly . | . . . . . . . . Trap Hack Attempts . | . . . . . . . . Triggered . | . . . . . . . . Disarmed . | . . . . . . . . Reprogrammed . | . . . . . . . . Reused . | . . . . . . . . Traps Extracted . | . . . . . . . . Installed . | . . . . . . . . Triggered . | . . . . . . . . Machines | -11 -10 -10 -9 -9 -9 -8 -8 ---------- Run | Yrd Mat Min Mat Min Exi Min Mat Machines Disabled . | . . . . . . . . Max in Single Turn . | . . . . . . . . Machines Repaired . | . . . . . . . . Machines Dismantled . | . . . . . . . . Machines Sabotaged . | . . . . . . . . Overloaded Fab Kills . | . . . . . . . . Hacking | -11 -10 -10 -9 -9 -9 -8 -8 --------- Run | Yrd Mat Min Mat Min Exi Min Mat Machines Accessed 6 | . 3 1 . . 1 . 1 Terminals 3 | . 2 . . . . . 1 Fabricators . | . . . . . . . . Repair Stations 1 | . 1 . . . . . . Recycling Units . | . . . . . . . . Scanalyzers . | . . . . . . . . Garrison Access . | . . . . . . . . Total Hacks 14 | . 9 1 . . 1 . 3 Successful 9 | . 5 1 . . 1 . 2 Failed 5 | . 4 . . . . . 1 Catastrophic 1 | . 1 . . . . . . Database Lockouts . | . . . . . . . . Manual 4 | . 2 . . . 1 . 1 Terminals 6 | . 3 . . . . . 3 Fabricators . | . . . . . . . . Repair Stations 6 | . 6 . . . . . . Recycling Units . | . . . . . . . . Scanalyzers . | . . . . . . . . Garrison Access . | . . . . . . . . Terminal Hacks 4 | . 1 1 . . 1 . 1 Open Door 1 | . . 1 . . . . . Zone Layout 2 | . 1 . . . . . 1 Derelict Proto ID Bank 1 | . . . . . 1 . . Fabricator Hacks . | . . . . . . . . Repair Station Hacks 4 | . 4 . . . . . . Scan Component 3 | . 3 . . . . . . Repair 1 | . 1 . . . . . . Recycling Unit Hacks . | . . . . . . . . Scanalyzer . | . . . . . . . . Garrison Access Hacks . | . . . . . . . . Unauthorized Hacks 1 | . . . . . . . 1 Terminals 1 | . . . . . . . 1 Botnet 1 | . . . . . . . 1 Fabricators . | . . . . . . . . Repair Stations . | . . . . . . . . Recycling Units . | . . . . . . . . Scanalyzers . | . . . . . . . . Garrison Access . | . . . . . . . . Data Cores Recovered . | . . . . . . . . Used . | . . . . . . . . Hacking Detections 2 | . 1 . . . . . 1 Full Trace Events 1 | . 1 . . . . . . Feedback Events . | . . . . . . . . Feedback Blocked . | . . . . . . . . Robot Schematics Acquired . | . . . . . . . . Robots Built . | . . . . . . . . Authchips . | . . . . . . . . Time . | . . . . . . . . Total Robot Build Rating . | . . . . . . . . Part Schematics Acquired . | . . . . . . . . Parts Built . | . . . . . . . . Authchips . | . . . . . . . . Time . | . . . . . . . . Total Part Build Rating . | . . . . . . . . Parts Repaired 1 | . 1 . . . . . . Time 26 | . 26 . . . . . . Parts Recycled . | . . . . . . . . Recycled Matter . | . . . . . . . . Retrieved Matter . | . . . . . . . . Retrieved Components . | . . . . . . . . Parts Scanalyzed . | . . . . . . . . Part Schematics Acquired . | . . . . . . . . Parts Damaged . | . . . . . . . . Bothacking | -11 -10 -10 -9 -9 -9 -8 -8 ------------ Run | Yrd Mat Min Mat Min Exi Min Mat Used RIF Installer . | . . . . . . . . Robots Hacked . | . . . . . . . . Non-combat . | . . . . . . . . Combat . | . . . . . . . . Robot Hacks Applied . | . . . . . . . . Relay Couplers Released . | . . . . . . . . Fabnet Peak Effective % . | . . . . . . . . Robots Rewired . | . . . . . . . . Allies Hacked . | . . . . . . . . Hacks Repelled . | . . . . . . . . Allies | -11 -10 -10 -9 -9 -9 -8 -8 -------- Run | Yrd Mat Min Mat Min Exi Min Mat Total Allies . | . . . . . . . . Largest Group . | . . . . . . . . Highest-Rated Group . | . . . . . . . . Highest-Rated Ally . | . . . . . . . . Total Orders . | . . . . . . . . Ally Attacks . | . . . . . . . . Total Damage . | . . . . . . . . Kills . | . . . . . . . . Allies Corrupted . | . . . . . . . . Allies Melted . | . . . . . . . . Intel | -11 -10 -10 -9 -9 -9 -8 -8 ------- Run | Yrd Mat Min Mat Min Exi Min Mat Robot Analysis Total . | . . . . . . . . Derelict Logs Recovered 4 | . . 1 . 3 . . . Drone Launches . | . . . . . . . . Drone Recoveries . | . . . . . . . . Exploration | -11 -10 -10 -9 -9 -9 -8 -8 ------------- Run | Yrd Mat Min Mat Min Exi Min Mat Turns Passed 1416 | 55 383 391 40 98 87 121 241 Spaces Moved 1730 | 45 201 424 47 231 223 323 236 Core 46 | 14 . . . . . . 32 Treads . | . . . . . . . . Legs . | . . . . . . . . Wheels 524 | 31 201 292 . . . . . Hover . | . . . . . . . . Flight 1160 | . . 132 47 231 223 323 204 Fastest Speed 37 | 50 80 37 37 37 37 37 40 Average Speed 54 | 73 80 68 37 37 37 37 68 Slowest Speed 550 | 90 80 120 37 37 37 37 550 Overloaded Moves . | . . . . . . . . Propulsion Burnouts . | . . . . . . . . Robots Hopped 12 | . . . . 6 . 1 5 Cave-ins Triggered . | . . . . . . . . Exploration Rate (%) 40 | 3 37 72 8 52 62 65 22 Regions Visited 7 Branch Regions 4 Pre-discovered Areas 1 | . . . . 1 . . . Known Exits Taken 3 | . . 1 . 1 . 1 . Unknown Exits Taken 4 | 1 1 . 1 . 1 . . Scrap Searched 4 | . . 2 . 1 . 1 . Spaces Dug . | . . . . . . . . Terrain Destroyed 26 | . 17 . . . . . 9 Melee . | . . . . . . . . Projectile 2 | . . . . . . . 2 AOE 24 | . 17 . . . . . 7 Terrain Rammed . | . . . . . . . . Walls Destroyed . | . . . . . . . . Machines Disabled . | . . . . . . . . Actions | -11 -10 -10 -9 -9 -9 -8 -8 --------- Run | Yrd Mat Min Mat Min Exi Min Mat Total 2131 | 62 411 511 65 236 228 323 295 Wait 248 | . 183 52 2 . . . 11 Move 1700 | 44 200 423 46 219 222 320 226 Hop 11 | . . . . 5 . 1 5 Pick Up 41 | 9 7 3 4 3 2 1 12 Fast Attach 13 | . 6 3 1 . . . 3 Attach 28 | 6 1 4 1 2 . . 14 Detach 8 | . . 5 . . . . 3 Swap 11 | 1 3 5 1 1 . . . Drop 34 | . 5 8 5 4 4 1 7 Fire 34 | 2 6 8 5 . . . 13 Melee 2 | . . . . 2 . . . Ram 1 | . . . . . . . 1 Kick . | . . . . . . . . Crush . | . . . . . . . . Escape Stasis . | . . . . . . . . Rewire . | . . . . . . . . Trap . | . . . . . . . . Miscellaneous . | . . . . . . . . Route ------- -11/Scrapyard -10/Materials (discovered 3 exits: *Mat / *Min x2) -10/Mines -9/Materials -9/Mines (discovered 2 exits: *Mat / *Exi) -9/Exiles (discovered 2 exits: [*Min x2]) -8/Mines (discovered 2 exits: *Mat x2) -8/Materials History --------- Turn | Location | Event 12 | -11/Scrapyard | Discovered new exit (range 15) 56 | -11/Scrapyard | Entered Materials 61 | -10/Materials | Discovered new exit (range 15) 181 | -10/Materials | Discovered new exit (range 15) 281 | -10/Materials | Discovered new exit (range 15) 309 | -10/Materials | Build established: Mutant 408 | -10/Materials | Repaired Ion Engine 439 | -10/Materials | Entered Mines 555 | -10/Mines | Identified exit to Materials 738 | -10/Mines | Met a Derelict who couldn't figure out how to use a Trap Extractor 830 | -10/Mines | Entered Materials 830 | -9/Materials | Evolved 2 slots: Power x1, Propulsion x1 865 | -9/Materials | Discovered new exit (range 5) 870 | -9/Materials | Entered Mines 883 | -9/Mines | Assembled infested the area 913 | -9/Mines | Identified exit to Materials 932 | -9/Mines | Identified exit to Exiles 942 | -9/Mines | A weapon hastily lodged in a ceiling crevice suddenly fell to the ground 966 | -9/Mines | Deemed a non-threat by the Exiles lab entrance 968 | -9/Mines | Entered Exiles 973 | -9/Exiles | Discovered new exit (range 15) 978 | -9/Exiles | Met 8R-AWN 983 | -9/Exiles | Met EX-HEX 996 | -9/Exiles | Met EX-BIN 1001 | -9/Exiles | Aligned with FarCom system 1001 | -9/Exiles | Given EX-Vault access code 1011 | -9/Exiles | Opened EX-Vault 1017 | -9/Exiles | Found Flying Fortress v7 1026 | -9/Exiles | Warned to stay clear of 0b10 Research branches 1037 | -9/Exiles | Met EX-DEC 1050 | -9/Exiles | Discovered new exit (range 14) 1055 | -9/Exiles | Left Exiles lab with Flying Fortress v7 1055 | -9/Exiles | Entered Mines 1097 | -8/Mines | Discovered exit to Materials (range 16) 1114 | -8/Mines | Discovered exit to Materials (range 10) 1176 | -8/Mines | Entered Materials 1176 | -8/Materials | Evolved 2 slots: Propulsion x1, Weapon x1 1288 | -8/Materials | Core integrity fell below 50% 1373 | -8/Materials | Lost 5 parts (2p1n2w) 1409 | -8/Materials | Core integrity fell below 20% 1417 | -8/Materials | Destroyed by G-47 Trooper with Particle Gun Last Messages --------------- R-06 Scavenger collects Hrd. Medium Armor Plating. U-05 Engineer builds a Wall. Assault Cannon severed. Acquired Assault Cannon. U-05 Engineer builds a Wall. C-17 Slicer destroyed. R-06 Scavenger collects Lgt. Nuclear Core. Acquired Concussive RPG. Critical hit (Burn: +37). Assault Cannon destroyed. Concussive RPG expended. G-47 Trooper knocked back. R-06 Scavenger knocked back. Knocked back. G-47 Trooper knocked back. U-05 Engineer knocked back. ALERT: Construction progress impeded, dispatching reinforcements to local area. U-05 Engineer lays Concrete. Map ----- +----------------------------------------------------+ | #??????????????????????????????????????????????? | | +??????????????????????????????????????????????? | | #??????????????????????????????????????????????? | | ? #??????????????????????????????????????????????? | | ??#??????????????????????????????????????????????? | | ?????????????????????????????????????????????????? | | ?????????????????????????????????????????????????? | | ?????????????????????????????????????????????????? | | ?????????????????????????????????????????????????? | | ?????????????????????????????????????????????????? | | ?????????????????????????????????????????????????? | | ?????????????????????????????????????????????????? | | ??????????????????Y??????????????????????????????? | | ?????????????????????????????????????????????????? | | ?????????????????????????????????????????????????? | | ?????????????????????????????????????????????????? | | ?????????????????????????????????????????????????? | | ???????????#########?????????????????????????????? | | ???????????? #?????????????????????????????? | | ????????????? #?????????????????????????????? | | ?????????????? #?????????????????????????????? | | ???????????????# #?##??????????????????????????? | | ???############# ### #####?????????????????????? | | ???# """ """ # # """ ##????????????????????? | | ???# """"""""" # Yu """ ######???????????????? | | ???# """"" " # # """@ru uru ????????? | | ???# + #! g #######??????????????? | | ???# # # !g ##????????????????????? | | ???# [ # # ##?????????????????????? | | ???# # ########??????????????????????? | | ???#######+##### #?????????????????????????????? | | ########## ##### #?????????????????????????????? | | #?????????????????????????????? | | #?????????????????????????????? | | #?????????????????????????????? | | ############+#######?????????????????????????????? | | ????????# #?????????????????????????????????? | | ????????# #?????????????????????????????????? | | #???????#""" #?????????????????????????????????? | | #???????#""" #?????????????????????????????????? | | #???????#""" #?????????????????????????????????? | | #???????# #?????????????????????????????????? | | #???????########?????????????????????????????????? | | #????????????????????????????????????????????????? | | #????????????????????????????????????????????????? | | #????????????????????????????????????????????????? | | #????????????????????????????????????????????????? | | ##???????????????????????????????????????????????? | | ##???????????????????????????????????????????????? | | ?#???????????????????????????????????????????????? | +----------------------------------------------------+ Best States ------------- Heat Dissipation 31 Energy Generation 23 Energy Capacity 280 Matter Stores 300 Matter Capacity 300 Sight Range 16 Terrain Scan Range 16 Terrain Scan Density 10 ECM Strength 1 Additional Mass Support 9 Armor Coverage 225 Evasion (%) 70 Item Schematics ----------------- None Robot Schematics ------------------ None Fabricated ------------ Nothing Alien Tech Used ----------------- None Achievements -------------- None Challenges ------------ None Game ------ Seed MakeshiftShieldInsulator Manual? 0 Play Time 00:43:11 Cumulative 10.8 hours Start 2024.04.13 @ 18:31:52 End 2024.04.13 @ 19:16:35 Sessions 1 Manual Loads 0 Difficulty Rogue Special Mode None Game No. 12 Rogue 12 Adventurer 0 Explorer 0 Win Type - Total 0 Types 0/0/0/0/0/0/0/0/0 Lore% 11 Gallery% 11 Achievement% 100 Wizard Run 0 Options --------- Layout 1 ASCII 0 Keyboard 0 Movement Numpad Keybinds 0 Fullscreen 1 Font 24/Smallcaps Map View 50x35 Zoom Use 0% Tactical HUD 0 Map Filters NONE Filters NONE Steam 1 RUN: f1c4fcbb-f01f-4f7a-a4b4-ca8ea92d8981